fUSD/lending_fUSD_20260601
["ID","MTS","AMOUNT","RATE_DAILY","PERIOD"]
[423692249,1780313447000,-2225.64037174,0.00013699,2]
[423692233,1780313447000,-2225.64037174,0.00013699,2]
[423692237,1780313447000,-2225.64037174,0.00013699,2]
[423692232,1780313447000,-2225.64037174,0.00013699,2]
[423692204,1780313447000,-2225.64037174,0.00013699,2]
[423692230,1780313447000,-2225.64037174,0.00013699,2]
[423692196,1780313447000,-2225.64037174,0.00013699,2]
[423692195,1780313447000,-2225.64037174,0.00013699,2]
[423692193,1780313447000,-2225.64037174,0.00013699,2]
[423692194,1780313447000,-2225.64037174,0.00013699,2]
[423692198,1780313447000,-2225.64037174,0.00013699,2]
[423692197,1780313447000,-2225.64037174,0.00013699,2]
[423692200,1780313447000,-2225.64037174,0.00013699,2]
[423692199,1780313447000,-2225.64037174,0.00013699,2]
[423692205,1780313447000,-2225.64037174,0.00013699,2]
[423692202,1780313447000,-2225.64037174,0.00013699,2]
[423692203,1780313447000,-2225.64037174,0.00013699,2]
[423692207,1780313447000,-2225.64037174,0.00013699,2]
[423692201,1780313447000,-2225.64037174,0.00013699,2]
[423692206,1780313447000,-2225.64037174,0.00013699,2]
[423692208,1780313447000,-2225.64037174,0.00013699,2]
[423692211,1780313447000,-2225.64037174,0.00013699,2]
[423692210,1780313447000,-2225.64037174,0.00013699,2]
[423692212,1780313447000,-2225.64037174,0.00013699,2]
[423692213,1780313447000,-2225.64037174,0.00013699,2]
[423692215,1780313447000,-2225.64037174,0.00013699,2]
[423692216,1780313447000,-2225.64037174,0.00013699,2]
[423692214,1780313447000,-2225.64037174,0.00013699,2]
[423692209,1780313447000,-2225.64037174,0.00013699,2]
[423692218,1780313447000,-2225.64037174,0.00013699,2]
[423692217,1780313447000,-2225.64037174,0.00013699,2]
[423692231,1780313447000,-2225.64037174,0.00013699,2]
[423692250,1780313447000,-2225.64037174,0.00013699,2]
[423692251,1780313447000,-2225.64037174,0.00013699,2]
[423692252,1780313447000,-2225.64037174,0.00013699,2]
[423692289,1780313447000,-150.0,0.00013816,2]
[423692284,1780313447000,-150.0,0.00013796,2]
[423692286,1780313447000,-341.46519996,0.00013806,2]
[423692285,1780313447000,-150.0,0.00013798,2]
[423692288,1780313447000,-150.0,0.00013809,2]
[423692283,1780313447000,-341.46519996,0.0001379,2]
[423692287,1780313447000,-150.0,0.00013807,2]
[423692292,1780313447000,-341.46519996,0.00013836,2]
[423692302,1780313447000,-150.0,0.00013878,2]
[423692294,1780313447000,-150.0,0.00013838,2]
[423692296,1780313447000,-341.46519996,0.00013851,2]
[423692295,1780313447000,-150.0,0.00013849,2]
[423692291,1780313447000,-166.66,0.00013836,2]
[423692293,1780313447000,-150.0,0.00013837,2]
[423692301,1780313447000,-150.0,0.0001387,2]
[423692298,1780313447000,-150.0,0.00013862,2]
[423692299,1780313447000,-150.0,0.00013862,2]
[423692300,1780313447000,-341.46519996,0.00013866,2]
[423692297,1780313447000,-150.0,0.00013857,2]
[423692303,1780313447000,-341.46519996,0.00013881,2]
[423692304,1780313447000,-341.46519996,0.00013896,2]
[423692307,1780313447000,-150.0,0.00013902,2]
[423692305,1780313447000,-150.0,0.00013898,2]
[423692306,1780313447000,-150.0,0.00013901,2]
[423692308,1780313447000,-341.46519996,0.00013912,2]
[423692281,1780313447000,-341.46519996,0.00013775,2]
[423692282,1780313447000,-150.0,0.00013787,2]
[423692253,1780313447000,-3641.95697194,0.00013699,2]
[423692280,1780313447000,-150.0,0.00013775,2]
[423692290,1780313447000,-341.46519996,0.00013821,2]
[423692255,1780313447000,-3641.95697194,0.00013699,2]
[423692256,1780313447000,-3641.95697194,0.00013699,2]
[423692254,1780313447000,-3641.95697194,0.00013699,2]
[423692258,1780313447000,-511.65471442,0.00013699,2]
[423692257,1780313447000,-500.0,0.00013699,2]
[423692262,1780313447000,-244.86363879,0.000137,2]
[423692265,1780313447000,-150.0,0.00013702,2]
[423692261,1780313447000,-150.0,0.000137,2]
[423692264,1780313447000,-163.49,0.000137,2]
[423692259,1780313447000,-341.46519996,0.000137,2]
[423692263,1780313447000,-990.02,0.000137,2]
[423692267,1780313447000,-150.0,0.00013713,2]
[423692260,1780313447000,-150.0,0.000137,2]
[423692269,1780313447000,-341.46519996,0.0001373,2]
[423692266,1780313447000,-150.0,0.00013711,2]
[423692278,1780313447000,-341.46519996,0.0001376,2]
[423692276,1780313447000,-150.0,0.00013755,2]
[423692274,1780313447000,-341.46519996,0.00013745,2]
[423692277,1780313447000,-150.0,0.00013755,2]
[423692272,1780313447000,-150.0,0.00013737,2]
[423692271,1780313447000,-150.0,0.00013737,2]
[423692279,1780313447000,-150.0,0.00013775,2]
[423692273,1780313447000,-150.0,0.00013743,2]
[423692270,1780313447000,-150.0,0.00013734,2]
[423692268,1780313447000,-341.46519996,0.00013715,2]
[423692275,1780313447000,-150.0,0.00013746,2]
[423692344,1780313448000,-150.0,0.00014062,2]
[423692349,1780313448000,-150.0,0.00014087,2]
[423692347,1780313448000,-341.46519996,0.00014078,2]
[423692345,1780313448000,-341.46519996,0.00014063,2]
[423692337,1780313448000,-150.0,0.00014023,2]
[423692346,1780313448000,-150.0,0.00014076,2]
[423692343,1780313448000,-150.0,0.00014062,2]
[423692339,1780313448000,-341.46519996,0.00014033,2]
[423692341,1780313448000,-341.46519996,0.00014048,2]
[423692351,1780313448000,-150.0,0.00014094,2]
[423692342,1780313448000,-150.0,0.00014056,2]
[423692350,1780313448000,-341.46519996,0.00014093,2]
[423692365,1780313448000,-150.0,0.00014159,2]
[423692352,1780313448000,-150.0,0.00014104,2]
[423692357,1780313448000,-341.46519996,0.00014123,2]
[423692354,1780313448000,-341.46519996,0.00014108,2]
[423692358,1780313448000,-150.0,0.00014124,2]
[423692355,1780313448000,-166.66,0.0001411,2]
[423692359,1780313448000,-150.0,0.00014125,2]
[423692353,1780313448000,-150.0,0.00014108,2]
[423692356,1780313448000,-150.0,0.00014112,2]
[423692364,1780313448000,-150.0,0.00014157,2]
[423692363,1780313448000,-341.46519996,0.00014154,2]
[423692361,1780313448000,-341.46519996,0.00014139,2]
[423692340,1780313448000,-150.0,0.00014042,2]
[423692360,1780313448000,-150.0,0.0001413,2]
[423692348,1780313448000,-150.0,0.00014083,2]
[423692321,1780313448000,-166.66,0.00013973,2]
[423692334,1780313448000,-150.0,0.00014004,2]
[423692372,1780313448000,-150.0,0.00014189,2]
[423692309,1780313448000,-150.0,0.00013916,2]
[423692310,1780313448000,-150.0,0.00013919,2]
[423692311,1780313448000,-341.46519996,0.00013927,2]
[423692313,1780313448000,-150.0,0.00013939,2]
[423692314,1780313448000,-341.46519996,0.00013942,2]
[423692315,1780313448000,-150.0,0.00013953,2]
[423692316,1780313448000,-341.46519996,0.00013957,2]
[423692320,1780313448000,-341.46519996,0.00013972,2]
[423692317,1780313448000,-150.0,0.0001396,2]
[423692323,1780313448000,-150.0,0.00013987,2]
[423692322,1780313448000,-150.0,0.0001398,2]
[423692338,1780313448000,-150.0,0.0001403,2]
[423692318,1780313448000,-150.0,0.00013966,2]
[423692324,1780313448000,-150.0,0.00013987,2]
[423692326,1780313448000,-341.46519996,0.00013987,2]
[423692328,1780313448000,-150.0,0.00013998,2]
[423692325,1780313448000,-150.0,0.00013987,2]
[423692336,1780313448000,-150.0,0.00014021,2]
[423692331,1780313448000,-1613.0,0.00014002,2]
[423692327,1780313448000,-60000.0,0.0001399,2]
[423692329,1780313448000,-17196.83287661,0.00014001,2]
[423692330,1780313448000,-150.0,0.00014001,2]
[423692335,1780313448000,-341.46519996,0.00014017,2]
[423692333,1780313448000,-341.46519996,0.00014002,2]
[423692332,1780313448000,-6453.0,0.00014002,2]
[423692319,1780313448000,-150.0,0.00013969,2]
[423692312,1780313448000,-150.0,0.00013934,2]
[423692373,1780313448000,-341.46519996,0.00014199,2]
[423692368,1780313448000,-431.27473,0.00014177,2]
[423692406,1780313448000,-170.2,0.00014351,2]
[423692409,1780313448000,-341.46519996,0.00014351,2]
[423692402,1780313448000,-150.0,0.00014344,2]
[423692399,1780313448000,-341.46519996,0.0001432,2]
[423692400,1780313448000,-150.0,0.00014329,2]
[423692401,1780313448000,-341.46519996,0.00014335,2]
[423692403,1780313448000,-150.0,0.00014349,2]
[423692408,1780313448000,-170.2,0.00014351,2]
[423692407,1780313448000,-170.2,0.00014351,2]
[423692404,1780313448000,-150.0,0.0001435,2]
[423692410,1780313448000,-150.0,0.00014362,2]
[423692413,1780313448000,-150.0,0.0001437,2]
[423692405,1780313448000,-170.2,0.00014351,2]
[423692414,1780313448000,-150.0,0.0001438,2]
[423692416,1780313448000,-166.66,0.00014384,2]
[423692418,1780313448000,-150.0,0.00014391,2]
[423692420,1780313448000,-150.0,0.00014398,2]
[423692415,1780313448000,-341.46519996,0.00014381,2]
[423692419,1780313448000,-341.46519996,0.00014396,2]
[423692417,1780313448000,-150.0,0.00014387,2]
[423692422,1780313448000,-150.0,0.00014411,2]
[423692421,1780313448000,-341.46519996,0.00014411,2]
[423692423,1780313448000,-150.0,0.00014412,2]
[423692425,1780313448000,-341.46519996,0.00014426,2]
[423692424,1780313448000,-150.0,0.00014418,2]
[423692362,1780313448000,-150.0,0.00014145,2]
[423692412,1780313448000,-150.0,0.00014366,2]
[423692398,1780313448000,-150.0,0.00014317,2]
[423692411,1780313448000,-341.46519996,0.00014366,2]
[423692389,1780313448000,-150.0,0.00014268,2]
[423692394,1780313448000,-150.0,0.00014291,2]
[423692367,1780313448000,-341.46519996,0.00014169,2]
[423692366,1780313448000,-150.0,0.00014165,2]
[423692370,1780313448000,-341.46519996,0.00014184,2]
[423692371,1780313448000,-150.0,0.00014186,2]
[423692375,1780313448000,-150.0,0.00014211,2]
[423692384,1780313448000,-166.66,0.00014247,2]
[423692376,1780313448000,-341.46519996,0.00014214,2]
[423692380,1780313448000,-150.0,0.00014237,2]
[423692379,1780313448000,-341.46519996,0.00014229,2]
[423692378,1780313448000,-150.0,0.00014227,2]
[423692385,1780313448000,-150.0,0.00014247,2]
[423692377,1780313448000,-150.0,0.00014221,2]
[423692386,1780313448000,-150.0,0.00014253,2]
[423692369,1780313448000,-150.0,0.00014183,2]
[423692390,1780313448000,-341.46519996,0.00014275,2]
[423692374,1780313448000,-150.0,0.00014206,2]
[423692391,1780313448000,-150.0,0.00014285,2]
[423692392,1780313448000,-150.0,0.00014288,2]
[423692395,1780313448000,-341.46519996,0.00014305,2]
[423692396,1780313448000,-150.0,0.00014309,2]
[423692393,1780313448000,-341.46519996,0.0001429,2]
[423692387,1780313448000,-341.46519996,0.0001426,2]
[423692388,1780313448000,-150.0,0.00014263,2]
[423692383,1780313448000,-341.46519996,0.00014245,2]
[423692382,1780313448000,-150.0,0.00014237,2]
[423692381,1780313448000,-150.0,0.00014237,2]
[423692397,1780313448000,-150.0,0.00014315,2]
[423692459,1780313449000,-150.0,0.00014576,2]
[423692461,1780313449000,-341.46519996,0.00014593,2]
[423692464,1780313449000,-341.46519996,0.00014608,2]
[423692460,1780313449000,-341.46519996,0.00014578,2]
[423692462,1780313449000,-150.0,0.00014596,2]
[423692467,1780313449000,-150.0,0.00014617,2]
[423692457,1780313449000,-150.0,0.00014572,2]
[423692458,1780313449000,-150.0,0.00014573,2]
[423692468,1780313449000,-341.46519996,0.00014623,2]
[423692466,1780313449000,-150.0,0.00014612,2]
[423692481,1780313449000,-150.0,0.00014687,2]
[423692455,1780313449000,-150.0,0.00014558,2]
[423692465,1780313449000,-150.0,0.00014612,2]
[423692476,1780313449000,-150.0,0.00014667,2]
[423692472,1780313449000,-341.46519996,0.00014638,2]
[423692474,1780313449000,-150.0,0.00014658,2]
[423692471,1780313449000,-150.0,0.00014637,2]
[423692470,1780313449000,-150.0,0.00014636,2]
[423692473,1780313449000,-341.46519996,0.00014653,2]
[423692478,1780313449000,-150.0,0.00014676,2]
[423692480,1780313449000,-341.46519996,0.00014684,2]
[423692479,1780313449000,-150.0,0.00014678,2]
[423692475,1780313449000,-150.0,0.00014665,2]
[423692477,1780313449000,-341.46519996,0.00014668,2]
[423692492,1780313449000,-379.0,0.00014732,2]
[423692482,1780313449000,-341.46519996,0.00014699,2]
[423692469,1780313449000,-150.0,0.00014625,2]
[423692456,1780313449000,-341.46519996,0.00014562,2]
[423692429,1780313449000,-150.0,0.00014451,2]
[423692445,1780313449000,-150.0,0.00014505,2]
[423692427,1780313449000,-341.46519996,0.00014441,2]
[423692431,1780313449000,-341.46519996,0.00014456,2]
[423692426,1780313449000,-150.0,0.00014432,2]
[423692428,1780313449000,-150.0,0.00014444,2]
[423692430,1780313449000,-150.0,0.00014453,2]
[423692433,1780313449000,-389.112121,0.00014471,2]
[423692432,1780313449000,-150.0,0.0001447,2]
[423692434,1780313449000,-341.46519996,0.00014472,2]
[423692435,1780313449000,-150.0,0.00014473,2]
[423692442,1780313449000,-341.46519996,0.00014502,2]
[423692443,1780313449000,-500.0,0.00014504,2]
[423692436,1780313449000,-150.0,0.00014476,2]
[423692454,1780313449000,-150.0,0.00014555,2]
[423692438,1780313449000,-150.0,0.00014487,2]
[423692440,1780313449000,-341.46519996,0.00014487,2]
[423692437,1780313449000,-150.0,0.00014487,2]
[423692441,1780313449000,-150.0,0.00014494,2]
[423692444,1780313449000,-21398.84,0.00014504,2]
[423692449,1780313449000,-150.0,0.00014521,2]
[423692446,1780313449000,-150.0,0.00014508,2]
[423692447,1780313449000,-150.0,0.00014514,2]
[423692450,1780313449000,-341.46519996,0.00014532,2]
[423692448,1780313449000,-341.46519996,0.00014517,2]
[423692451,1780313449000,-150.0,0.00014535,2]
[423692452,1780313449000,-150.0,0.0001454,2]
[423692453,1780313449000,-341.46519996,0.00014547,2]
[423692439,1780313449000,-150.0,0.00014487,2]
[423692484,1780313449000,-150.0,0.00014699,2]
[423692463,1780313449000,-150.0,0.00014604,2]
[423692493,1780313449000,-379.0,0.00014736,2]
[423692513,1780313449000,-300.99112264,0.000148,2]
[423692511,1780313449000,-150.0,0.00014795,2]
[423692521,1780313449000,-150.0,0.00014826,2]
[423692520,1780313449000,-150.0,0.00014822,2]
[423692522,1780313449000,-150.0,0.00014827,2]
[423692523,1780313449000,-379.0,0.00014829,2]
[423692530,1780313449000,-150.0,0.00014861,2]
[423692524,1780313449000,-150.0,0.00014831,2]
[423692526,1780313449000,-379.0,0.00014837,2]
[423692525,1780313449000,-341.46519996,0.00014835,2]
[423692529,1780313449000,-150.0,0.00014859,2]
[423692527,1780313449000,-150.0,0.00014843,2]
[423692528,1780313449000,-341.46519996,0.0001485,2]
[423692532,1780313449000,-341.46519996,0.00014865,2]
[423692534,1780313449000,-379.0,0.00014869,2]
[423692535,1780313449000,-379.0,0.00014875,2]
[423692536,1780313449000,-379.0,0.00014879,2]
[423692539,1780313449000,-150.0,0.00014883,2]
[423692533,1780313449000,-379.0,0.00014867,2]
[423692540,1780313449000,-150.0,0.00014884,2]
[423692538,1780313449000,-341.46519996,0.0001488,2]
[423692537,1780313449000,-150.0,0.00014879,2]
[423692541,1780313449000,-150.0,0.00014891,2]
[423692543,1780313449000,-341.46519996,0.00014895,2]
[423692542,1780313449000,-391.0,0.00014893,2]
[423692544,1780313449000,-6944.3184832,0.000149,3]
[423692488,1780313449000,-150.0,0.00014728,2]
[423692516,1780313449000,-383.0,0.00014804,2]
[423692515,1780313449000,-379.0,0.00014804,2]
[423692531,1780313449000,-150.0,0.00014863,2]
[423692510,1780313449000,-341.46519996,0.0001479,2]
[423692517,1780313449000,-341.46519996,0.00014805,2]
[423692486,1780313449000,-150.0,0.00014719,2]
[423692483,1780313449000,-150.0,0.00014699,2]
[423692487,1780313449000,-150.0,0.00014719,2]
[423692489,1780313449000,-341.46519996,0.00014729,2]
[423692485,1780313449000,-341.46519996,0.00014714,2]
[423692490,1780313449000,-379.0,0.00014729,2]
[423692491,1780313449000,-150.0,0.00014731,2]
[423692496,1780313449000,-150.0,0.0001474,2]
[423692498,1780313449000,-379.0,0.00014747,2]
[423692500,1780313449000,-341.46519996,0.00014759,2]
[423692503,1780313449000,-150.0,0.00014763,2]
[423692504,1780313449000,-379.0,0.00014764,2]
[423692494,1780313449000,-150.0,0.00014737,2]
[423692507,1780313449000,-150.0,0.0001478,2]
[423692501,1780313449000,-150.0,0.0001476,2]
[423692502,1780313449000,-406.0,0.00014762,2]
[423692495,1780313449000,-150.0,0.00014737,2]
[423692499,1780313449000,-255.78966585,0.00014754,2]
[423692505,1780313449000,-150.0,0.00014772,2]
[423692506,1780313449000,-341.46519996,0.00014774,2]
[423692508,1780313449000,-150.0,0.00014781,2]
[423692519,1780313449000,-341.46519996,0.0001482,2]
[423692518,1780313449000,-379.0,0.00014809,2]
[423692512,1780313449000,-350.0,0.00014799,2]
[423692514,1780313449000,-150.0,0.00014802,2]
[423692497,1780313449000,-341.46519996,0.00014744,2]
[423692509,1780313449000,-379.0,0.00014785,2]
[423692564,1780313450000,-341.46519996,0.00014956,2]
[423692575,1780313450000,-277.75158038,0.00014986,2]
[423692572,1780313450000,-150.56250073,0.00014986,2]
[423692566,1780313450000,-150.0,0.00014966,2]
[423692561,1780313450000,-341.46519996,0.00014941,2]
[423692565,1780313450000,-379.0,0.00014964,2]
[423692568,1780313450000,-379.0,0.00014975,2]
[423692574,1780313450000,-152.60770856,0.00014986,2]
[423692573,1780313450000,-271.09959181,0.00014986,2]
[423692570,1780313450000,-153.92330006,0.00014986,2]
[423692569,1780313450000,-156.323396,0.00014986,2]
[423692571,1780313450000,-151.46739638,0.00014986,2]
[423692562,1780313450000,-150.0,0.00014945,2]
[423692567,1780313450000,-341.46519996,0.00014971,2]
[423692560,1780313450000,-379.0,0.00014939,2]
[423692546,1780313450000,-10691.16505716,0.000149,2]
[423692558,1780313450000,-150.0,0.00014935,2]
[423692587,1780313450000,-151.0,0.00014997,2]
[423692545,1780313450000,-5685.54957624,0.000149,3]
[423692547,1780313450000,-2377.90963849,0.000149,2]
[423692552,1780313450000,-379.0,0.00014919,2]
[423692551,1780313450000,-341.46519996,0.00014911,2]
[423692550,1780313450000,-150.0,0.00014904,2]
[423692563,1780313450000,-150.0,0.00014954,2]
[423692548,1780313450000,-746.45307977,0.000149,2]
[423692554,1780313450000,-150.0,0.00014923,2]
[423692553,1780313450000,-379.0,0.00014922,2]
[423692555,1780313450000,-150.0,0.00014925,2]
[423692556,1780313450000,-341.46519996,0.00014926,2]
[423692557,1780313450000,-150.0,0.00014933,2]
[423692559,1780313450000,-379.0,0.00014935,2]
[423692549,1780313450000,-17196.83287661,0.000149,2]
[423692577,1780313450000,-151.40936633,0.00014986,2]
[423692603,1780313450000,-150.0,0.00015,2]
[423692580,1780313450000,-151.0,0.00014997,2]
[423692607,1780313450000,-706.35379325,0.00015,2]
[423692609,1780313450000,-702.03035918,0.00015,14]
[423692608,1780313450000,-2079.75528447,0.00015,2]
[423692606,1780313450000,-7197532.63162522,0.00015,2]
[423692605,1780313450000,-150.0,0.00015,2]
[423692610,1780313450000,-8095.5231349,0.00015,2]
[423692602,1780313450000,-300.0,0.00014999,2]
[423692604,1780313450000,-417.81433435,0.00015,2]
[423692600,1780313450000,-781.56714637,0.00014999,2]
[423692611,1780313450000,-5474728.57489755,0.00015,2]
[423692601,1780313450000,-300.0,0.00014999,2]
[423692576,1780313450000,-185.25931037,0.00014986,2]
[423692596,1780313450000,-500.0,0.00014999,2]
[423692597,1780313450000,-155.58436505,0.00014999,2]
[423692595,1780313450000,-500.0,0.00014999,2]
[423692598,1780313450000,-300.0,0.00014999,2]
[423692593,1780313450000,-500.0,0.00014999,2]
[423692578,1780313450000,-177.38153286,0.00014986,2]
[423692581,1780313450000,-151.0,0.00014997,2]
[423692579,1780313450000,-341.46519996,0.00014986,2]
[423692594,1780313450000,-500.0,0.00014999,2]
[423692582,1780313450000,-151.0,0.00014997,2]
[423692583,1780313450000,-151.0,0.00014997,2]
[423692586,1780313450000,-151.0,0.00014997,2]
[423692584,1780313450000,-151.0,0.00014997,2]
[423692588,1780313450000,-151.0,0.00014997,2]
[423692589,1780313450000,-500.0,0.00014999,2]
[423692599,1780313450000,-300.0,0.00014999,2]
[423692591,1780313450000,-500.0,0.00014999,2]
[423692592,1780313450000,-500.0,0.00014999,2]
[423692590,1780313450000,-500.0,0.00014999,2]
[423692585,1780313450000,-151.0,0.00014997,2]
[423692614,1780313451000,-1391.93868977,0.00015,2]
[423692616,1780313451000,-2847.10979599,0.00015,2]
[423692615,1780313451000,-69082.91747912,0.00015,2]
[423692613,1780313451000,-363.565,0.00015,2]
[423692612,1780313451000,-15716.36437512,0.00015,2]
[423692619,1780313452000,-1065.56708414,0.000106,2]
[423692618,1780313452000,-1317.07431792,0.00015,2]
[423692617,1780313452000,-1301.94742128,0.00015,2]
[423692621,1780313452000,-35.26057134,0.00015,2]
[423692623,1780313452000,-929.0,0.00014641,2]
[423692620,1780313452000,-795.65697695,0.00015,2]
[423692624,1780313452000,-2260.07191059,0.00015,2]
[423692622,1780313452000,-296.82102635,0.00015,2]
[423692625,1780313452000,-504.0,0.00015,2]
[423692632,1780313597000,514.459152,0.00027697,120]
[423692633,1780313719000,-2462.845,8.433e-05,2]
[423692634,1780313734000,-168.887,8.433e-05,2]
[423692635,1780313773000,-300.0,8.603e-05,2]
[423692636,1780313786000,-1200.0,8.603e-05,2]
[423692686,1780313826000,-500.0,8.603e-05,2]
[423692687,1780313841000,-170.0,8.603e-05,2]
[423692688,1780313841000,-80.0,8.604e-05,2]
[423692689,1780313880000,-2500.0,8.505e-05,2]
[423692690,1780313893000,-170.0,8.604e-05,2]
[423692691,1780313933000,-153.34340001,8.604e-05,2]
[423692692,1780313947000,-3950.00495115,8.605e-05,2]
[423692693,1780313987000,-3950.00495115,8.591e-05,2]
[423692694,1780313991000,187.68722544,8.777e-05,7]
[423692695,1780314040000,-2500.0,8.505e-05,2]
[423692696,1780314044000,152.0,9.059e-05,7]
[423692697,1780314085000,-264.51,8.505e-05,2]
[423692698,1780314130000,-1750.12819312,8.505e-05,2]
[423692701,1780314175000,-500.0,8.504e-05,2]
[423692702,1780314177000,185.85801165,8.777e-05,7]
[423692704,1780314264000,161.92929393,0.00024681,120]
[423692703,1780314264000,183.82500034,0.00023963,120]
[423692709,1780314443000,-1280.0,8.227e-05,2]
[423692710,1780314457000,-150.0,8.308e-05,2]
[423692711,1780314496000,-150.0,8.39e-05,2]
[423692712,1780314512000,-1970.276,8.433e-05,2]
[423692716,1780314522000,-500.0,8.504e-05,2]
[423692713,1780314522000,-168.887,8.433e-05,2]
[423692714,1780314522000,-150.0,8.473e-05,2]
[423692717,1780314522000,-500.0,8.504e-05,2]
[423692715,1780314522000,-1200.0,8.503e-05,2]
[423692719,1780314522000,-500.0,8.504e-05,2]
[423692720,1780314522000,-500.0,8.504e-05,2]
[423692721,1780314522000,-500.0,8.504e-05,2]
[423692718,1780314522000,-500.0,8.504e-05,2]
[423692722,1780314522000,-481.113,8.504e-05,2]
[423692723,1780314523000,-18.887,8.504e-05,2]
[423692726,1780314523000,-500.0,8.504e-05,2]
[423692725,1780314523000,-500.0,8.504e-05,2]
[423692724,1780314523000,-567.21100432,8.504e-05,2]
[423692727,1780314523000,-500.0,8.504e-05,2]
[423692729,1780314523000,-500.0,8.504e-05,2]
[423692730,1780314523000,-500.0,8.504e-05,2]
[423692733,1780314523000,-413.90199568,8.504e-05,2]
[423692732,1780314523000,-500.0,8.504e-05,2]
[423692731,1780314523000,-500.0,8.504e-05,2]
[423692734,1780314523000,150.73245608,0.0001,3]
[423692728,1780314523000,-500.0,8.504e-05,2]
[423692737,1780314524000,-500.0,8.504e-05,2]
[423692735,1780314524000,-86.09800432,8.504e-05,2]
[423692736,1780314524000,-500.0,8.504e-05,2]
[423692740,1780314524000,-500.0,8.504e-05,2]
[423692741,1780314524000,-500.0,8.504e-05,2]
[423692739,1780314524000,-500.0,8.504e-05,2]
[423692742,1780314524000,-500.0,8.504e-05,2]
[423692738,1780314524000,-500.0,8.504e-05,2]
[423692747,1780314525000,-40.92776103,8.504e-05,2]
[423692746,1780314525000,-500.0,8.504e-05,2]
[423692745,1780314525000,-222.49079809,8.504e-05,2]
[423692744,1780314525000,-500.0,8.504e-05,2]
[423692743,1780314525000,-150.48343656,8.504e-05,2]
[423692753,1780314526000,-500.0,8.504e-05,2]
[423692749,1780314526000,-500.0,8.504e-05,2]
[423692752,1780314526000,-314.84872473,8.504e-05,2]
[423692748,1780314526000,-181.56303706,8.504e-05,2]
[423692750,1780314526000,-314.84872473,8.504e-05,2]
[423692751,1780314526000,-500.0,8.504e-05,2]
[423692759,1780314526000,-500.0,8.504e-05,2]
[423692754,1780314526000,-314.84872473,8.504e-05,2]
[423692760,1780314526000,-244.19333929,8.504e-05,2]
[423692758,1780314526000,-314.84872473,8.504e-05,2]
[423692755,1780314526000,-500.0,8.504e-05,2]
[423692757,1780314526000,-500.0,8.504e-05,2]
[423692756,1780314526000,-314.84872473,8.504e-05,2]
[423692763,1780314527000,-314.84872473,8.504e-05,2]
[423692762,1780314527000,-500.0,8.504e-05,2]
[423692764,1780314527000,-500.0,8.504e-05,2]
[423692765,1780314527000,-314.84872473,8.504e-05,2]
[423692761,1780314527000,-70.65538544,8.504e-05,2]
[423692766,1780314527000,-500.0,8.504e-05,2]
[423692768,1780314527000,-500.0,8.504e-05,2]
[423692770,1780314527000,-1669.94971564,8.505e-05,2]
[423692767,1780314527000,-314.84872473,8.504e-05,2]
[423692769,1780314527000,-314.84872473,8.504e-05,2]
[423692771,1780314528000,-1230.09181537,8.503e-05,2]
[423692772,1780314528000,-3769.90818463,8.505e-05,2]
[423692773,1780314529000,-5000.0,8.505e-05,2]
[423692774,1780314530000,-5000.0,8.505e-05,2]
[423692775,1780314550000,-3950.00495115,8.505e-05,2]
[423692777,1780314563000,-1586.0,8.505e-05,2]
[423692778,1780314564000,2000.0,0.00030135,120]
[423692779,1780314565000,-3950.00495115,8.505e-05,2]